[Event "GER-ch Youth-U14 2022"]
[Site "Willingen"]
[Date "2022.06.08"]
[Round "5.15"]
[White "Weyerer, Noah"]
[Black "Jahnz, Laurin"]
[Result "1-0"]
[ECO "D10"]
[WhiteElo "1555"]
[BlackElo "1681"]
[Annotator "NA RC COMBH"]
[PlyCount "119"]
[EventDate "2022.06.05"]
[EventType "swiss"]
[EventRounds "9"]
[EventCountry "GER"]
[SourceTitle "playchess.com"]
[Source "ChessBase"]
[SourceQuality "1"]
[TimeControl "40/4500+30:900+30"]

1. c4 {[%emt 0:00:00]} c6 {[%emt 0:00:00]} 2. d4 {[%emt 0:00:00]} d5 {[%emt 0:00:00]} 3. cxd5 {[%emt 0:00:00]} cxd5 {[%emt 0:00:00]} 4. Nc3 {[%emt 0:00:00]} Nf6 {[%emt 0:00:00]} 5. Bf4 {[%emt 0:00:00]} a6 {[%emt 0:00:00]} 6. e3 {[%emt 0:00:00]} Bf5 {[%emt 0:00:00]} 7. Nf3 {[%emt 0:00:00]} Qb6 {[%emt 0:04:47]} 8. Qc1 {[%emt 0:04:58]} Nc6 {[%emt 0:02:24]} 9. Nh4 {[%emt 0:05:01]} Bg6 {[%emt 0:02:06]} 10. Nxg6 {[%emt 0:04:47]} hxg6 {[%emt 0:00:07]} 11. Bd3 {[%emt 0:03:18]} e6 {[%emt 0:02:13]} 12. h3 {[%emt 0:02:30]} Be7 {[%emt 0:08:17]} 13. Qd2 {[%emt 0:04:38]} Rc8 {[%emt 0:05:59]} 14. Rc1 {[%emt 0:01:16]} O-O {[%emt 0:00:59]} 15. O-O {[%emt 0:00:09]} Qa5 {[%emt 0:17:21]} 16. a3 {[%emt 0:08:58]} Na7 {[%emt 0:05:38]} 17. Ra1 {[%emt 0:07:16]} b5 {[%emt 0:06:18]} 18. b4 {[%emt 0:04:04]} Qb6 {[%emt 0:00:14]} 19. Ne2 {[%emt 0:04:45]} Nd7 {[%emt 0:02:06]} 20. Nc1 {[%emt 0:04:49]} g5 {[%emt 0:02:12]} 21. Bg3 {[%emt 0:06:45]} g6 {[%emt 0:01:58]} 22. Nb3 {[%emt 0:02:28]} Kg7 {[%emt 0:01:53]} 23. Nc5 {[%emt 0:03:33]} Nxc5 {[%emt 0:00:12]} 24. bxc5 {[%emt 0:00:02]} Qc6 {[%emt 0:00:06]} 25. a4 {[%emt 0:03:33]} Rh8 {[%emt 0:07:49]} 26. axb5 {[%emt 0:02:58]} Nxb5 {[%emt 0:00:05]} 27. Bxb5 {[%emt 0:02:37]} axb5 {[%emt 0:00:37]} 28. Ra7 {[%emt 0:02:56]} Bf6 {[%emt 0:03:46]} 29. f4 {[%emt 0:02:00]} gxf4 {[%emt 0:01:10]} 30. Rxf4 {[%emt 0:00:54]} Rc7 {[%emt 0:03:08]} 31. Ra1 {[%emt 0:02:33]} Bd8 {[%emt 0:01:24]} 32. Rf3 {[%emt 0:02:18]} Rb7 {[%emt 0:00:22]} 33. Raf1 {[%emt 0:00:25]} f5 {[%emt 0:01:07]} 34. Ra1 {[%emt 0:01:12]} Bf6 {[%emt 0:01:00]} 35. Rff1 {[%emt 0:00:56]} Rc8 {[%emt 0:03:48]} 36. Qb4 {[%emt 0:00:25]} Bg5 {[%emt 0:00:48]} 37. Be5+ {[%emt 0:00:16]} Bf6 {[%emt 0:00:06]} 38. Bf4 {[%emt 0:00:50]} g5 {[%emt 0:00:41]} 39. Bd6 {[%emt 0:00:11]} Kg6 {[%emt 0:01:03]} 40. Ra5 {[%emt 0:01:17]} Bd8 {[%emt 0:02:22]} 41. Ra2 {[%emt 0:15:22]} Bc7 {[%emt 0:16:04]} 42. Bxc7 {[%emt 0:00:45]} Qxc7 {[%emt 0:00:00]} 43. Ra6 {[%emt 0:00:00]} Kf7 {[%emt 0:00:00]} 44. Rfa1 {[%emt 0:00:00]} Rh8 {[%emt 0:00:00]} 45. Rd6 {[%emt 0:00:00]} g4 {[%emt 0:00:00]} 46. c6 {[%emt 0:00:00]} Qe7 {[%emt 0:00:00]} 47. cxb7 {[%emt 0:00:35]} Qg5 {[%emt 0:00:00]} 48. Rd7+ {[%emt 0:00:54]} Kg6 {[%emt 0:00:00]} 49. b8=Q {[%emt 0:02:14]} Qxe3+ {[%emt 0:00:00]} 50. Kh1 {[%emt 0:00:24]} Rxh3+ {[%emt 0:00:00]} 51. gxh3 {[%emt 0:00:29]} Qf3+ {[%emt 0:00:00]} 52. Kg1 {[%emt 0:00:21]} Qe3+ {[%emt 0:00:00]} 53. Kf1 {[%emt 0:00:33]} Qxh3+ {[%emt 0:00:00]} 54. Ke2 {[%emt 0:00:34]} Qf3+ {[%emt 0:00:35]} 55. Kd2 {[%emt 0:00:30]} Qf2+ {[%emt 0:00:17]} 56. Kc3 {[%emt 0:00:12]} Qe3+ {[%emt 0:00:16]} 57. Kb2 {[%emt 0:00:23]} Qe2+ {[%emt 0:00:49]} 58. Ka3 {[%emt 0:00:22]} Qd3+ {[%emt 0:00:07]} 59. Qb3 {[%emt 0:00:09]} b4+ {[%emt 0:00:02]} 60. Q8xb4 {[%emt 0:00:17]} 1-0

[Event "GER-ch Youth-U14 2022"]
[Site "Willingen"]
[Date "2022.06.08"]
[Round "5.16"]
[White "Huber, Benedikt"]
[Black "Linnemann, Caspar"]
[Result "1/2-1/2"]
[ECO "B90"]
[WhiteElo "2288"]
[BlackElo "1720"]
[Annotator "TA"]
[PlyCount "114"]
[EventDate "2022.06.05"]
[EventType "swiss"]
[EventRounds "9"]
[EventCountry "GER"]
[SourceTitle "playchess.com"]
[Source "ChessBase"]
[SourceQuality "1"]
[TimeControl "40/4500+30:900+30"]

{[%evp 13,114,6,31,23,37,28,60,58,52,56,55,65,66,56,129,85,83,67,85,56,72,60,77,80,79,79,63,62,60,54,87,58,125,57,76,0,0,0,-6,-120,0,0,0,0,0,0,0,0,0,0,0,0,0,0,152,19,306,313,573,562,839,816,827,804,1795,1796,1562,1491,1123,6383,6191,6203,2852,2958,1893,1751,12833,6403,1472,0,980,941,847,0,808,786,772,695,606,565,688,588,564,0,0,0,0,0,0,0,0,0,0]} 1. e4 {[%emt 0:00:00]} c5 {[%emt 0:00:00]} 2. Nf3 {[%emt 0:00:00]} d6 {[%emt 0:00:00]} 3. d4 {[%emt 0:00:00]} cxd4 {[%emt 0:00:00]} 4. Nxd4 {[%emt 0:00:00]} Nf6 {[%emt 0:00:00]} 5. Nc3 {[%emt 0:00:00]} a6 {[%emt 0:00:00]} 6. Bd3 {[%emt 0:00:00]} e6 {[%emt 0:00:00]} 7. f4 {[%emt 0:00:00]} Qc7 {[%emt 0:00:00]} 8. g4 {[%emt 0:00:00] B82: Sicilian Scheveningen: 6 f4.} h6 {[%emt 0:00:00] [#]} 9. Bd2 $146 {[%emt 0:00:00]} ({Predecessor:} 9. Qe2 Be7 10. a4 Bd7 11. e5 dxe5 12. fxe5 Nd5 13. Nxd5 Bh4+ 14. Kd1 Qc5 15. Nf3 Qxd5 {1-0 (35) Lagarde,M (2521)-Heurtebize,C (2067) Avoine 2014}) 9... Nc6 {[%emt 0:00:00]} 10. Nxc6 {[%emt 0:00:00] White is slightly better.} Qxc6 {[%emt 0:00:00]} 11. Qf3 {[%emt 0:00:00]} Be7 {[%emt 0:09:07]} 12. O-O-O {[%emt 0:03:16]} Nd7 {[%emt 0:07:28]} 13. h4 {[%emt 0:13:18]} Nb6 {[%emt 0:10:29]} (13... b5 $14) 14. Rdf1 {[%emt 0:07:03]} Bd7 {[%emt 0:09:09]} 15. g5 {[%emt 0:06:26]} O-O-O {[%emt 0:07:14]} 16. Qe2 {[%emt 0:06:28]} Rde8 {[%emt 0:05:49]} 17. Be3 {[%emt 0:03:28]} Na4 {[%emt 0:02:07]} 18. Nxa4 {[%emt 0:07:52]} Qxa4 {[%emt 0:00:21]} 19. Kb1 {[%emt 0:00:06]} Bc6 {[%emt 0:04:52]} 20. Bd2 {[%emt 0:03:30]} d5 {[%emt 0:04:39]} 21. e5 {[%emt 0:03:48]} Bb4 {[%emt 0:02:11]} 22. c3 {[%emt 0:08:52]} Be7 {[%emt 0:03:21]} ({Better is} 22... Bc5 $14) 23. Rc1 {[%emt 0:02:01]} (23. f5 $16) 23... Kb8 $14 {[%emt 0:02:17]} 24. Rcg1 {[%emt 0:02:21]} (24. h5 $1 $16) 24... d4 $11 {[%emt 0:04:35]} 25. Bc2 {[%emt 0:06:46]} Qb5 {[%emt 0:01:01]} 26. Bd3 {[%emt 0:00:49]} (26. Qxb5 $11 {keeps the balance.} axb5 27. gxh6 gxh6 28. Rh2 (28. cxd4 Bxh1 29. Rxh1 Rd8 $15)) 26... Qa4 {[%emt 0:00:17]} ({Black should try} 26... Qb6 $1 $17 27. Be4 Ba3) 27. b3 {[%emt 0:01:25]} Qa3 {[%emt 0:00:47]} 28. Be4 {[%emt 0:00:58] Bxc6 is the strong threat.} Bxe4+ {[%emt 0:02:16]} 29. Qxe4 {[%emt 0:00:09]} dxc3 {[%emt 0:01:30]} 30. Bxc3 {[%emt 0:00:32]} g6 {[%emt 0:00:57]} 31. Rd1 {[%emt 0:01:38] Rd7 would kill now.} Qc5 $1 {[%emt 0:01:16]} 32. Rd7 {[%emt 0:03:14][%csl Gd7][%cal Re4b7]} Qb5 {[%emt 0:00:28]} 33. Rhd1 {[%emt 0:00:52]} h5 {[%emt 0:01:54] [#]} (33... hxg5 $11 34. hxg5 (34. fxg5 Rd8 $11) 34... Rd8 35. Rxd8+ Rxd8 36. Rxd8+ Bxd8) 34. Kc2 $40 {[%emt 0:02:46][%mdl 128] White mounts an attack. White is much more active.} ({White should play} 34. Ba5 $1 $16 {[%mdl 512]}) 34... Rhf8 $2 {[%emt 0:02:35][%mdl 8192] [#]} (34... Rc8 $11 35. Rxe7 Rxc3+ 36. Kb2 (36. Kxc3 Qc5+ 37. Kb2 Qxe7 $11) 36... Rh3) 35. a4 $1 $18 {[%emt 0:01:00]} Qb6 {[%emt 0:00:22] [#]} (35... Qc6 {might work better.} 36. Qxc6 bxc6) 36. Ba5 $1 {[%emt 0:02:34][%mdl 512]} Qa7 {[%emt 0:03:34]} (36... Qc5+ 37. Kb1) 37. Kb2 {[%emt 0:00:55]} ({Weaker is} 37. Qc4 Qc5 38. Bc7+ Ka8 39. Qxc5 Bxc5 $16) 37... Bc5 {[%emt 0:02:02]} 38. b4 {[%emt 0:00:47]} Bb6 {[%emt 0:00:21]} 39. Bxb6 {[%emt 0:00:54]} Qxb6 {[%emt 0:00:02]} 40. R1d6 {[%emt 0:00:30]} Qa7 {[%emt 0:01:54]} 41. a5 {[%emt 0:16:08] Intending Rb6 and mate.} Rc8 {[%emt 0:00:00]} 42. Rb6 {[%emt 0:00:00][%cal Rd7b7]} Rc7 {[%emt 0:00:00]} 43. Rxc7 {[%emt 0:00:00]} Kxc7 {[%emt 0:00:00][%mdl 4096] Endgame KQR-KQR} 44. Qd4 {[%emt 0:00:00] Threatening mate with Qd6+.} Re8 {[%emt 0:00:00]} 45. Qc5+ {[%emt 0:00:00]} (45. Qd6+ $142 Kc8 46. b5 axb5 47. a6 Qxb6 48. Qxb6 bxa6 49. Qxa6+ Kc7 50. Qd6+ Kc8 51. Qc6+ Kd8 52. Qxb5) 45... Kb8 {[%emt 0:00:00]} 46. Qd4 $2 {[%emt 0:00:00]} (46. Qd6+ $18 Ka8 47. b5 axb5 48. a6) 46... Kc8 $2 {[%emt 0:00:00][%mdl 8192] [#]} (46... Kc7 $11 47. b5 axb5 48. Qd6+ Kc8) 47. Rc6+ $3 {[%emt 0:00:00][%mdl 512]} Kb8 {[%emt 0:00:00]} 48. Qxa7+ {[%emt 0:00:00]} Kxa7 {[%emt 0:00:00] KR-KR} 49. Rc7 {[%emt 0:00:00]} Rf8 {[%emt 0:00:00]} 50. Kb3 {[%emt 0:00:00]} Kb8 {[%emt 0:00:00]} 51. Re7 {[%emt 0:00:00]} Ka8 {[%emt 0:01:01]} 52. Rd7 {[%emt 0:00:00]} Kb8 {[%emt 0:01:45]} 53. Kc4 $2 {[%emt 0:00:00]} (53. b5 $18 Kc8 54. Re7) 53... Rc8+ $11 {[%emt 0:03:27] The position is equal.} 54. Kd4 {[%emt 0:00:00]} Rc7 {[%emt 0:01:42]} 55. Rxc7 {[%emt 0:00:00]} Kxc7 {[%emt 0:00:18]} 56. Kc5 {[%emt 0:00:07]} Kd7 {[%emt 0:01:38]} 57. b5 {[%emt 0:01:26] White threatens bxa6 and mate.} Kc7 {[%emt 0:00:47] Weighted Error Value: White=0.49/Black=0.46} 1/2-1/2

[Event "GER-ch Youth-U14 2022"]
[Site "Willingen"]
[Date "2022.06.08"]
[Round "5.17"]
[White "Braeutigam, Alexander"]
[Black "Sinka, Silas"]
[Result "1/2-1/2"]
[ECO "D35"]
[WhiteElo "1749"]
[BlackElo "1386"]
[Annotator "NA RC COMBH"]
[PlyCount "58"]
[EventDate "2022.06.05"]
[EventType "swiss"]
[EventRounds "9"]
[EventCountry "GER"]
[SourceTitle "playchess.com"]
[Source "ChessBase"]
[SourceQuality "1"]
[TimeControl "40/4500+30:900+30"]

1. c4 {[%emt 0:00:00]} e6 {[%emt 0:00:00]} 2. Nc3 {[%emt 0:00:00]} d5 {[%emt 0:00:00]} 3. cxd5 {[%emt 0:00:00]} exd5 {[%emt 0:00:00]} 4. d4 {[%emt 0:00:00]} Nf6 {[%emt 0:00:00]} 5. Bg5 {[%emt 0:00:00]} Be7 {[%emt 0:00:00]} 6. e3 {[%emt 0:00:00]} O-O {[%emt 0:00:00]} 7. Qc2 {[%emt 0:00:00]} Be6 {[%emt 0:00:00]} 8. Bd3 {[%emt 0:00:00]} h6 {[%emt 0:00:00]} 9. Bh4 {[%emt 0:00:00]} b6 {[%emt 0:00:00]} 10. Nf3 {[%emt 0:00:00]} c5 {[%emt 0:00:00]} 11. O-O {[%emt 0:00:00]} Nc6 {[%emt 0:00:00]} 12. a3 {[%emt 0:00:00]} c4 {[%emt 0:00:00]} 13. Bf5 {[%emt 0:00:00]} Qd7 {[%emt 0:00:00]} 14. Bxe6 {[%emt 0:00:00]} fxe6 {[%emt 0:00:00]} 15. Ne5 {[%emt 0:00:00]} Nxe5 {[%emt 0:00:00]} 16. dxe5 {[%emt 0:00:00]} Ng4 {[%emt 0:00:00]} 17. Bg3 {[%emt 0:00:00]} Bc5 {[%emt 0:13:17]} 18. h3 {[%emt 0:00:00]} Nxe3 {[%emt 0:00:18]} 19. fxe3 {[%emt 0:00:11]} Bxe3+ {[%emt 0:00:07]} 20. Kh1 {[%emt 0:02:38]} d4 {[%emt 0:02:04]} 21. Ne4 {[%emt 0:01:34]} d3 {[%emt 0:04:35]} 22. Qxc4 {[%emt 0:08:34]} Rxf1+ {[%emt 0:01:00]} 23. Rxf1 {[%emt 0:00:10]} Rc8 {[%emt 0:00:14]} 24. Qb3 {[%emt 0:00:32]} d2 {[%emt 0:00:47]} 25. Nc3 {[%emt 0:11:25]} Qd3 {[%emt 0:03:25]} 26. Qxe6+ {[%emt 0:02:56]} Kh7 {[%emt 0:00:16]} 27. Rd1 {[%emt 0:06:16]} Rf8 {[%emt 0:00:27]} 28. Qg4 {[%emt 0:03:30]} Rf1+ {[%emt 0:00:13]} 29. Kh2 {[%emt 0:00:19]} Bg1+ {[%emt 0:13:37]} 1/2-1/2

[Event "GER-ch Youth-U14 2022"]
[Site "Willingen"]
[Date "2022.06.08"]
[Round "5.18"]
[White "Shapiro, Danil"]
[Black "Deschler, Arne"]
[Result "0-1"]
[ECO "A06"]
[WhiteElo "1468"]
[BlackElo "1646"]
[Annotator "NA RC COMBH"]
[PlyCount "90"]
[EventDate "2022.06.05"]
[EventType "swiss"]
[EventRounds "9"]
[EventCountry "GER"]
[SourceTitle "playchess.com"]
[Source "ChessBase"]
[SourceQuality "1"]
[TimeControl "40/4500+30:900+30"]

1. Nf3 {[%emt 0:00:00]} d5 {[%emt 0:00:00]} 2. g3 {[%emt 0:00:00]} Nf6 {[%emt 0:00:00]} 3. Bg2 {[%emt 0:00:00]} c6 {[%emt 0:00:00]} 4. O-O {[%emt 0:00:00]} g6 {[%emt 0:00:00]} 5. b3 {[%emt 0:00:00]} Bg7 {[%emt 0:00:00]} 6. Bb2 {[%emt 0:00:00]} O-O {[%emt 0:00:00]} 7. d3 {[%emt 0:00:00]} Bg4 {[%emt 0:00:12]} 8. h3 {[%emt 0:00:00]} Bxf3 {[%emt 0:01:00]} 9. Bxf3 {[%emt 0:00:00]} Nbd7 {[%emt 0:01:39]} 10. Nd2 {[%emt 0:00:00]} Qc7 {[%emt 0:01:47]} 11. c4 {[%emt 0:00:00]} e6 {[%emt 0:02:06]} 12. Bg2 {[%emt 0:00:00]} Rfe8 {[%emt 0:04:20]} 13. Qc2 {[%emt 0:00:00]} Qd6 {[%emt 0:04:20]} 14. a3 {[%emt 0:00:00]} e5 {[%emt 0:01:57]} 15. e3 {[%emt 0:00:00]} Nc5 {[%emt 0:03:02]} 16. b4 {[%emt 0:05:17]} Ne6 {[%emt 0:01:34]} 17. c5 {[%emt 0:08:57]} Qc7 {[%emt 0:00:14]} 18. Nb3 {[%emt 0:08:06]} Nd7 {[%emt 0:03:22]} 19. Rad1 {[%emt 0:05:16]} f5 {[%emt 0:01:07]} 20. Kh2 {[%emt 0:07:10]} f4 {[%emt 0:09:33]} 21. e4 {[%emt 0:01:06]} d4 {[%emt 0:01:16]} 22. Nd2 {[%emt 0:01:32]} fxg3+ {[%emt 0:02:34]} 23. fxg3 {[%emt 0:00:05]} a5 {[%emt 0:08:54]} 24. Nc4 {[%emt 0:01:02]} axb4 {[%emt 0:00:30]} 25. axb4 {[%emt 0:00:08]} Rf8 {[%emt 0:03:43]} 26. Qb3 {[%emt 0:01:26]} Rxf1 {[%emt 0:02:39]} 27. Rxf1 {[%emt 0:01:20]} Ndxc5 {[%emt 0:07:34]} 28. bxc5 {[%emt 0:00:41]} Nxc5 {[%emt 0:00:09]} 29. Qc2 {[%emt 0:01:10]} b5 {[%emt 0:01:20]} 30. Nd2 {[%emt 0:15:23]} Qd6 {[%emt 0:06:12]} 31. Nb3 {[%emt 0:06:22]} Na4 {[%emt 0:02:10]} 32. Ra1 {[%emt 0:02:55]} Rc8 {[%emt 0:03:26]} 33. Ba3 {[%emt 0:09:30]} c5 {[%emt 0:01:54]} 34. Bb4 {[%emt 0:01:39]} Rc6 {[%emt 0:01:54]} 35. Rc1 {[%emt 0:01:08]} Bf8 {[%emt 0:00:34]} 36. Bf1 {[%emt 0:00:36]} Bh6 {[%emt 0:02:32]} 37. Bd2 {[%emt 0:01:05]} Bxd2 {[%emt 0:00:42]} 38. Nxd2 {[%emt 0:00:03]} Nc3 {[%emt 0:00:35]} 39. Qb3+ {[%emt 0:00:55]} Kg7 {[%emt 0:00:27]} 40. Nb1 {[%emt 0:00:24]} b4 {[%emt 0:00:39]} 41. Nxc3 {[%emt 0:16:42]} dxc3 {[%emt 0:15:23]} 42. Be2 {[%emt 0:00:41]} Qd4 {[%emt 0:01:25]} 43. Kg2 {[%emt 0:00:00]} Rf6 {[%emt 0:00:00]} 44. Bf3 {[%emt 0:00:00]} Rxf3 {[%emt 0:00:00]} 45. Qc2 {[%emt 0:04:16]} Rxd3 {[%emt 0:00:00]} 0-1

[Event "GER-ch Youth-U14 2022"]
[Site "Willingen"]
[Date "2022.06.08"]
[Round "5.20"]
[White "Eichhorn, Valentin"]
[Black "Goldinov, Daniel"]
[Result "1/2-1/2"]
[ECO "A40"]
[WhiteElo "1565"]
[BlackElo "1626"]
[Annotator "NA RC COMBH"]
[PlyCount "92"]
[EventDate "2022.06.05"]
[EventType "swiss"]
[EventRounds "9"]
[EventCountry "GER"]
[SourceTitle "playchess.com"]
[Source "ChessBase"]
[SourceQuality "1"]
[TimeControl "40/4500+30:900+30"]

1. d4 {[%emt 0:00:00]} e5 {[%emt 0:00:00]} 2. e3 {[%emt 0:00:00]} d6 {[%emt 0:00:00]} 3. dxe5 {[%emt 0:00:00]} Nc6 {[%emt 0:00:00]} 4. Nf3 {[%emt 0:00:00]} Bg4 {[%emt 0:00:00]} 5. Be2 {[%emt 0:09:34]} dxe5 {[%emt 0:03:34]} 6. Qxd8+ {[%emt 0:07:17]} Rxd8 {[%emt 0:00:40]} 7. Nc3 {[%emt 0:02:03]} Nf6 {[%emt 0:08:39]} 8. e4 {[%emt 0:02:58]} Bb4 {[%emt 0:07:53]} 9. Bg5 {[%emt 0:09:39]} Rd6 {[%emt 0:27:27]} 10. O-O {[%emt 0:02:01]} Bxc3 {[%emt 0:07:07]} 11. Bxf6 {[%emt 0:03:01]} Bxb2 {[%emt 0:02:42]} 12. Rab1 {[%emt 0:03:28]} Bxf3 {[%emt 0:04:40]} 13. Bxf3 {[%emt 0:02:15]} gxf6 {[%emt 0:01:47]} 14. Rxb2 {[%emt 0:00:41]} b6 {[%emt 0:00:41]} 15. Rbb1 {[%emt 0:05:21]} Rd2 {[%emt 0:02:15]} 16. Rfd1 {[%emt 0:02:34]} Rxd1+ {[%emt 0:01:57]} 17. Rxd1 {[%emt 0:00:22]} Ke7 {[%emt 0:01:17]} 18. c3 {[%emt 0:03:23]} Rd8 {[%emt 0:00:35]} 19. Rxd8 {[%emt 0:00:08]} Nxd8 {[%emt 0:00:10]} 20. Be2 {[%emt 0:00:55]} Ne6 {[%emt 0:00:42]} 21. Bd1 {[%emt 0:01:50]} Nc5 {[%emt 0:00:50]} 22. Bc2 {[%emt 0:00:22]} b5 {[%emt 0:01:14]} 23. Kf1 {[%emt 0:01:30]} a5 {[%emt 0:01:23]} 24. a3 {[%emt 0:00:40]} a4 {[%emt 0:00:38]} 25. Ke2 {[%emt 0:01:06]} Nb7 {[%emt 0:02:10]} 26. c4 {[%emt 0:05:30]} c6 {[%emt 0:01:47]} 27. Bd3 {[%emt 0:03:18]} Nc5 {[%emt 0:01:57]} 28. cxb5 {[%emt 0:01:22]} Nxd3 {[%emt 0:00:13]} 29. Kxd3 {[%emt 0:00:19]} cxb5 {[%emt 0:00:00]} 30. Kc3 {[%emt 0:00:37]} Kd6 {[%emt 0:00:07]} 31. g4 {[%emt 0:00:38]} Kc5 {[%emt 0:01:13]} 32. f3 {[%emt 0:00:57]} Kb6 {[%emt 0:01:10]} 33. Kc2 {[%emt 0:04:33]} h6 {[%emt 0:02:12]} 34. h3 {[%emt 0:08:05]} Kc6 {[%emt 0:00:54]} 35. h4 {[%emt 0:02:34]} Kc5 {[%emt 0:00:26]} 36. Kc3 {[%emt 0:00:26]} Kb6 {[%emt 0:01:07]} 37. Kb2 {[%emt 0:01:45]} Kc6 {[%emt 0:00:31]} 38. h5 {[%emt 0:00:18]} Kc5 {[%emt 0:00:07]} 39. Kc3 {[%emt 0:01:00]} b4+ {[%emt 0:00:37]} 40. axb4+ {[%emt 0:00:06]} Kb5 {[%emt 0:00:10]} 41. Kc2 {[%emt 0:15:35]} Kxb4 {[%emt 0:15:24]} 42. Kb2 {[%emt 0:00:06]} a3+ {[%emt 0:00:26]} 43. Ka2 {[%emt 0:00:08]} Ka4 {[%emt 0:00:54]} 44. Ka1 {[%emt 0:00:05]} Kb3 {[%emt 0:00:08]} 45. Kb1 {[%emt 0:00:05]} a2+ {[%emt 0:00:25]} 46. Ka1 {[%emt 0:00:02]} Kc3 {[%emt 0:00:33]} 1/2-1/2

[Event "GER-ch Youth-U14 2022"]
[Site "Willingen"]
[Date "2022.06.08"]
[Round "5.21"]
[White "Mainka, Ingmar"]
[Black "Vihan, Shourya"]
[Result "1/2-1/2"]
[ECO "B10"]
[WhiteElo "1427"]
[BlackElo "1385"]
[Annotator "NA RC COMBH"]
[PlyCount "90"]
[EventDate "2022.06.05"]
[EventType "swiss"]
[EventRounds "9"]
[EventCountry "GER"]
[SourceTitle "playchess.com"]
[Source "ChessBase"]
[SourceQuality "1"]
[TimeControl "40/4500+30:900+30"]

1. e4 {[%emt 0:00:00]} c6 {[%emt 0:00:00]} 2. Nc3 {[%emt 0:00:00]} d5 {[%emt 0:00:00]} 3. Nf3 {[%emt 0:00:00]} dxe4 {[%emt 0:00:00]} 4. Nxe4 {[%emt 0:00:00]} Nf6 {[%emt 0:00:00]} 5. Qe2 {[%emt 0:00:00]} Nxe4 {[%emt 0:00:00]} 6. Qxe4 {[%emt 0:00:00]} Nd7 {[%emt 0:00:00]} 7. Bc4 {[%emt 0:00:00]} Nf6 {[%emt 0:00:00]} 8. Ne5 {[%emt 0:00:00]} e6 {[%emt 0:00:00]} 9. Qe2 {[%emt 0:00:00]} Be7 {[%emt 0:00:00]} 10. c3 {[%emt 0:00:00]} O-O {[%emt 0:00:00]} 11. d4 {[%emt 0:00:00]} Nd5 {[%emt 0:00:00]} 12. O-O {[%emt 0:00:00]} Qc7 {[%emt 0:06:08]} 13. Bd3 {[%emt 0:00:00]} c5 {[%emt 0:06:00]} 14. Nf3 {[%emt 0:05:29]} b6 {[%emt 0:07:51]} 15. Ng5 {[%emt 0:14:39]} Nf6 {[%emt 0:13:19]} 16. dxc5 {[%emt 0:04:47]} bxc5 {[%emt 0:06:02]} 17. c4 {[%emt 0:06:30]} Bb7 {[%emt 0:03:41]} 18. Re1 {[%emt 0:05:58]} Rae8 {[%emt 0:04:20]} 19. Bd2 {[%emt 0:07:03]} Bd6 {[%emt 0:03:42]} 20. h3 {[%emt 0:04:35]} e5 {[%emt 0:03:27]} 21. Bc3 {[%emt 0:08:23]} h6 {[%emt 0:05:17]} 22. Ne4 {[%emt 0:01:15]} Nxe4 {[%emt 0:00:31]} 23. Bxe4 {[%emt 0:00:08]} Bxe4 {[%emt 0:00:35]} 24. Qxe4 {[%emt 0:00:04]} f6 {[%emt 0:03:01]} 25. Rad1 {[%emt 0:00:50]} Rd8 {[%emt 0:01:12]} 26. Qc2 {[%emt 0:02:27]} Qb7 {[%emt 0:04:06]} 27. Ba5 {[%emt 0:03:15]} Bc7 {[%emt 0:00:27]} 28. Bxc7 {[%emt 0:03:31]} Qxc7 {[%emt 0:00:01]} 29. Rxd8 {[%emt 0:02:10]} Rxd8 {[%emt 0:00:06]} 30. Rd1 {[%emt 0:00:15]} Rd4 {[%emt 0:01:02]} 31. b3 {[%emt 0:00:50]} Qd6 {[%emt 0:01:40]} 32. Rxd4 {[%emt 0:00:13]} exd4 {[%emt 0:00:38]} 33. Qd3 {[%emt 0:00:43]} Qe5 {[%emt 0:01:22]} 34. Qf3 {[%emt 0:01:01]} Qe1+ {[%emt 0:00:57]} 35. Kh2 {[%emt 0:00:07]} Qe5+ {[%emt 0:01:13]} 36. Kg1 {[%emt 0:00:13]} Qe1+ {[%emt 0:00:59]} 37. Kh2 {[%emt 0:00:05]} Qb1 {[%emt 0:00:38]} 38. Qd5+ {[%emt 0:01:38]} Kh8 {[%emt 0:00:13]} 39. Qxc5 {[%emt 0:00:21]} Qe4 {[%emt 0:00:34]} 40. Qc8+ {[%emt 0:02:56]} Kh7 {[%emt 0:00:09]} 41. Qd7 {[%emt 0:15:30]} d3 {[%emt 0:22:56]} 42. c5 {[%emt 0:04:46]} Qf4+ {[%emt 0:04:37]} 43. Kg1 {[%emt 0:00:18]} Qc1+ {[%emt 0:00:22]} 44. Kh2 {[%emt 0:00:07]} Qf4+ {[%emt 0:02:27]} 45. Kg1 {[%emt 0:00:05]} Qc1+ {[%emt 0:00:32]} 1/2-1/2